bitfinex/quotes_SOLUSD_20250402
["timestamp","ask_amount","ask_price","bid_price","bid_amount"]
[1743570626921,84.51298429,124.41,124.37,7.27]
[1743570627097,16.12768429,124.4,124.37,0.03]
[1743570628725,8.0392,124.39,124.37,0.03]
[1743570629016,17.91274586,124.38,124.37,0.03]
[1743570629520,17.91274586,124.38,124.36,0.03]
[1743570629719,16.12768429,124.37,124.36,0.03]
[1743570630628,24.16818429,124.37,124.36,0.03]
[1743570633329,24.16818429,124.37,124.34,7.25]
[1743570633330,44.26948429,124.37,124.34,7.25]
[1743570633638,16.12768429,124.36,124.34,0.03]
[1743570634239,8.0418,124.35,124.34,0.03]
[1743570634910,24.31164586,124.35,124.34,0.03]
[1743570636324,0.14216157,124.34,124.3,7.18]
[1743570636528,16.26984586,124.34,124.3,7.18]
[1743570638725,8.0431,124.33,124.28,0.03]
[1743570638926,8.0431,124.33,124.29,7.18]
[1743570639314,8.0431,124.33,124.3,7.18]
[1743570640431,80.7,124.36,124.31,20.0]
[1743570641735,8.042,124.35,124.31,20.0]
[1743570645941,8.0411,124.36,124.31,20.03]
[1743570648263,16.12768429,124.36,124.31,20.03]
[1743570648429,16.12768429,124.33,124.31,0.03]
[1743570649529,16.12768429,124.32,124.31,0.03]
[1743570650038,16.26984586,124.33,124.31,0.03]
[1743570650549,8.0437,124.32,124.31,0.03]
[1743570652335,24.17138429,124.32,124.31,0.03]
[1743570652532,44.28068429,124.32,124.28,0.03]
[1743570653966,28.153,124.32,124.28,0.03]
[1743570654260,44.28068429,124.32,124.28,0.03]
[1743570655155,28.153,124.32,124.28,0.03]
[1743570655458,8.0437,124.32,124.28,0.03]
[1743570658435,8.0433,124.33,124.28,0.03]
[1743570658645,8.0418,124.35,124.29,6.274]
[1743570659167,8.0418,124.35,124.3,18.64964886]
[1743570659357,8.0418,124.35,124.31,7.2]
[1743570660230,28.2072,124.36,124.31,7.2]
[1743570661855,44.33488429,124.36,124.31,7.2]
[1743570663847,16.12768429,124.35,124.31,7.2]
[1743570664349,8.0424,124.34,124.31,7.2]
[1743570667337,8.0418,124.35,124.31,7.2]
[1743570668149,16.12768429,124.33,124.28,0.03]
[1743570668341,16.12768429,124.33,124.29,7.18]
[1743570668543,16.12768429,124.33,124.28,0.03]
[1743570668742,16.12768429,124.33,124.29,7.16]
[1743570669361,8.0437,124.32,124.29,7.16]
[1743570670358,8.0437,124.32,124.31,0.03]
[1743570670668,8.0431,124.33,124.31,0.03]
[1743570673245,24.17078429,124.33,124.31,0.03]
[1743570673440,25.78058429,124.33,124.31,0.03]
[1743570673645,16.12768429,124.32,124.31,0.03]
[1743570674259,24.17138429,124.32,124.31,0.03]
[1743570675066,24.31354586,124.32,124.31,0.03]
[1743570675956,8.18586157,124.32,124.31,0.03]
[1743570676151,8.0437,124.32,124.31,0.03]
[1743570676753,24.17138429,124.32,124.31,0.03]
[1743570677841,44.42284586,124.32,124.28,7.17]
[1743570678041,16.12768429,124.31,124.28,7.17]
[1743570678542,8.045,124.3,124.28,0.03]
[1743570683465,8.1074,124.31,124.28,0.03]
[1743570685665,8.1074,124.31,124.28,7.17]
[1743570688053,16.12768429,124.29,124.28,0.03]
[1743570689463,16.26984586,124.29,124.28,0.03]
[1743570689774,24.31544586,124.29,124.28,0.03]
[1743570692152,8.18776157,124.29,124.28,0.03]
[1743570692356,24.31544586,124.29,124.28,0.03]
[1743570693868,8.18776157,124.29,124.28,0.03]
[1743570694058,24.31544586,124.29,124.28,0.03]
[1743570695181,25.96424586,124.29,124.27,0.03]
[1743570695396,16.12768429,124.28,124.27,0.03]
[1743570695963,28.592772,124.27,124.26,0.0001]
[1743570696162,44.72045629,124.27,124.26,0.0001]
[1743570696383,18.933972,124.26,124.23,0.03]
[1743570696578,16.26984586,124.24,124.23,0.03]
[1743570698183,24.31874586,124.24,124.23,0.03]
[1743570698881,8.0489,124.24,124.23,0.03]
[1743570699073,24.17528429,124.26,124.23,0.03]
[1743570699681,8.0476,124.26,124.23,0.03]
[1743570700581,24.17528429,124.26,124.23,0.03]
[1743570700886,16.26984586,124.25,124.23,0.03]
[1743570701966,16.12768429,124.24,124.23,0.03]
[1743570702168,16.26984586,124.25,124.23,0.03]
[1743570702690,8.0489,124.24,124.23,0.03]
[1743570712773,8.19106157,124.24,124.23,0.03]
[1743570713183,24.31874586,124.24,124.23,0.03]
[1743570713677,8.19106157,124.24,124.23,0.03]
[1743570715275,8.0489,124.24,124.23,0.03]
[1743570719678,18.933972,124.23,124.18,0.03]
[1743570719881,16.26984586,124.23,124.18,0.03]
[1743570720680,108.8712,124.24,124.18,0.03]
[1743570720999,88.7489,124.24,124.18,0.03]
[1743570725011,8.0489,124.24,124.18,0.03]
[1743570725898,8.0489,124.24,124.18,8.0827]
[1743570726599,8.0489,124.24,124.2,20.0]
[1743570728315,8.0489,124.24,124.21,7.14]
[1743570729217,8.0483,124.25,124.21,7.14]
[1743570729412,0.063,124.26,124.21,7.14]
[1743570729609,0.063,124.26,124.24,20.0]
[1743570729913,8.1106,124.26,124.25,7.14]
[1743570730215,0.063,124.26,124.25,7.14]
[1743570748815,0.063,124.26,124.25,33.79694886]
[1743570749013,0.063,124.26,124.25,41.84514886]
[1743570749321,0.063,124.26,124.25,122.74514886]
[1743570749921,0.063,124.31,124.28,20.0]
[1743570750120,0.063,124.31,124.29,7.14]
[1743570753343,8.1074,124.31,124.29,7.14]
[1743570756641,8.1074,124.31,124.28,20.0]
[1743570756841,8.1074,124.31,124.29,7.12]
[1743570758922,44.34608429,124.31,124.26,0.03]
[1743570759118,16.12768429,124.29,124.26,0.03]
[1743570759345,16.12768429,124.28,124.26,0.03]
[1743570759939,17.79128429,124.29,124.26,0.03]
[1743570761249,8.0463,124.28,124.26,0.03]
[1743570763541,8.045,124.3,124.26,0.03]
[1743570765033,24.17268429,124.3,124.26,0.03]
[1743570765329,8.045,124.3,124.26,0.03]
[1743570768639,8.1074,124.31,124.26,0.03]
[1743570769430,8.1074,124.31,124.26,18.67964886]
[1743570771935,0.063,124.31,124.26,107.62714886]
[1743570772136,0.063,124.31,124.26,115.25644886]
[1743570773955,0.063,124.31,124.29,20.0]
[1743570774268,0.063,124.31,124.3,7.12]
[1743570776344,0.063,124.31,124.3,134.998972]
[1743570776960,0.063,124.31,124.3,126.953972]
[1743570777544,0.063,124.36,124.33,18.64964886]
[1743570777745,0.063,124.36,124.34,7.12]
[1743570779363,0.063,124.36,124.33,80.9]
[1743570779658,0.063,124.36,124.34,7.12]
[1743570780461,8.1041,124.36,124.34,7.12]
[1743570781563,24.23178429,124.36,124.33,7.12]
[1743570781780,16.12768429,124.35,124.33,7.12]
[1743570782962,8.0424,124.34,124.33,7.12]
[1743570783163,8.0424,124.34,124.31,7.12]
[1743570783368,17.73848429,124.33,124.3,7.12]
[1743570783943,1.6108,124.33,124.3,7.12]
[1743570784268,8.0424,124.34,124.3,7.12]
[1743570784646,9.6941,124.36,124.3,7.12]
[1743570784960,9.6941,124.36,124.3,88.02]
[1743570785370,0.063,124.36,124.31,26.69404886]
[1743570786266,8.1041,124.36,124.31,26.69404886]
[1743570786668,0.063,124.36,124.31,26.69404886]
[1743570786969,0.063,124.36,124.31,46.69404886]
[1743570787169,8.1043,124.36,124.31,46.69404886]
[1743570787370,0.063,124.36,124.31,46.69404886]
[1743570788865,0.063,124.36,124.3,102.7189]
[1743570789252,0.063,124.36,124.34,20.0]
[1743570789453,0.063,124.36,124.35,27.12]
[1743570790672,0.063,124.36,124.35,35.1618]
[1743570792871,0.063,124.36,124.35,39.14419321]
[1743570793168,0.063,124.36,124.35,57.79384207]
[1743570796150,0.063,124.36,124.35,31.10239321]
[1743570798955,0.063,124.36,124.35,7.12]
[1743570799661,0.063,124.36,124.34,7.12]
[1743570800879,0.063,124.36,124.32,80.9]
[1743570801078,0.063,124.36,124.33,7.12]
[1743570806679,17.69848429,124.35,124.31,0.03]
[1743570806880,17.69848429,124.35,124.31,7.15]
[1743570807876,16.12768429,124.34,124.31,0.03]
[1743570808386,8.0431,124.33,124.31,0.03]
[1743570810793,8.0431,124.33,124.31,0.03]
[1743570812289,20.1067,124.34,124.31,0.03]
[1743570812290,8.0424,124.34,124.31,0.03]
[1743570817992,8.0424,124.34,124.31,7.15]
[1743570818188,28.1485,124.34,124.31,7.15]
[1743570819389,44.27618429,124.34,124.31,0.03]
[1743570819576,16.12768429,124.33,124.31,0.03]
[1743570821599,8.0437,124.32,124.31,0.03]
[1743570823482,24.17138429,124.32,124.31,0.03]
[1743570823684,8.0437,124.32,124.31,0.03]
[1743570827086,8.18526157,124.33,124.31,0.03]
[1743570827801,8.0431,124.33,124.31,0.03]
[1743570829007,28.2115,124.34,124.31,0.03]
[1743570829900,44.33918429,124.34,124.31,0.03]
[1743570834808,28.2115,124.34,124.31,0.03]
[1743570842411,8.1054,124.34,124.31,0.03]
[1743570842998,0.063,124.34,124.32,7.12]
[1743570856505,24.23308429,124.34,124.32,7.12]
[1743570856921,44.33918429,124.34,124.31,0.03]
[1743570861308,28.2115,124.34,124.31,0.03]
[1743570865028,16.12768429,124.33,124.31,0.03]
[1743570865208,24.17138429,124.32,124.31,0.03]
[1743570865415,8.0437,124.32,124.31,0.03]
[1743570865920,24.17138429,124.32,124.31,0.03]
[1743570866104,8.0437,124.32,124.31,0.03]
[1743570866713,24.45570743,124.32,124.31,0.03]
[1743570867231,44.56500743,124.32,124.28,7.12]
[1743570867426,16.12768429,124.31,124.28,7.12]
[1743570868020,44.56500743,124.32,124.28,7.12]
[1743570868413,44.56500743,124.32,124.26,0.03]
[1743570868630,44.56500743,124.32,124.27,7.12]
[1743570870737,8.0433,124.33,124.27,103.7486]
[1743570871729,8.1054,124.34,124.27,103.7486]
[1743570874214,8.1054,124.34,124.28,30.0]
[1743570874636,28.2115,124.34,124.28,30.0]
[1743570874936,16.41200743,124.33,124.28,30.0]
[1743570875736,16.12768429,124.32,124.28,30.0]
[1743570876038,8.0444,124.31,124.28,30.0]
[1743570876233,8.0444,124.31,124.27,88.02]
[1743570876427,44.28308429,124.31,124.27,7.12]
[1743570876633,44.28308429,124.31,124.26,7.15]
[1743570876837,44.28308429,124.31,124.26,0.03]
[1743570877143,44.28308429,124.31,124.26,7.15]
[1743570877623,28.1554,124.31,124.26,7.15]
[1743570879642,8.0444,124.31,124.26,7.15]
[1743570882147,28.151,124.33,124.26,15.1974]
[1743570882322,8.0431,124.33,124.27,18.64964886]
[1743570882649,8.0431,124.33,124.27,20.18534886]
[1743570883742,8.1054,124.34,124.27,28.23184886]
[1743570885651,8.1054,124.34,124.27,28.26184886]
[1743570885829,28.2115,124.34,124.27,20.21534886]
[1743570886428,28.2115,124.34,124.27,101.11534886]
[1743570886849,28.2115,124.34,124.27,82.4657]
[1743570887251,28.2115,124.34,124.27,90.5126]
[1743570887630,28.2115,124.34,124.28,30.0]
[1743570889162,16.12768429,124.33,124.27,80.93]
[1743570889530,0.28432314,124.33,124.27,80.93]
[1743570889737,16.12768429,124.32,124.28,7.12]
[1743570890556,8.0444,124.31,124.28,7.12]
[1743570893150,16.12768429,124.29,124.27,0.03]
[1743570893342,16.12768429,124.28,124.27,0.03]
[1743570895235,24.17328429,124.29,124.27,0.03]
[1743570897060,16.12768429,124.28,124.27,0.03]
[1743570897238,8.0463,124.28,124.27,0.03]
[1743570898051,24.17398429,124.28,124.27,0.03]
[1743570898941,24.45830743,124.28,124.27,0.03]
[1743570899152,43.10795629,124.28,124.27,0.03]
[1743570899386,1.93852314,124.27,124.23,0.03]
[1743570899551,16.12768429,124.25,124.23,0.03]
[1743570900366,0.28432314,124.26,124.23,0.03]
[1743570900565,16.41200743,124.26,124.23,0.03]
[1743570900761,0.28432314,124.25,124.23,0.03]
[1743570901261,8.0489,124.24,124.23,0.03]
[1743570901561,43.11055629,124.24,124.23,0.03]
[1743570902248,44.76265629,124.24,124.23,0.03]
[1743570902764,44.76265629,124.24,124.18,0.03]
[1743570902765,18.933972,124.23,124.18,0.03]
[1743570902943,0.28432314,124.19,124.18,30.03]
[1743570903343,8.33642314,124.19,124.18,30.03]
[1743570903557,0.28432314,124.2,124.18,0.03]
[1743570903760,16.41200743,124.2,124.18,0.03]
[1743570904146,8.0508,124.21,124.18,0.03]
[1743570904447,8.0502,124.22,124.18,0.03]
[1743570905160,18.933972,124.21,124.18,0.03]
[1743570905563,0.28432314,124.19,124.18,0.03]
[1743570906264,18.933972,124.17,124.14,0.03]
[1743570906465,80.7,124.16,124.14,0.03]
[1743570906670,0.28432314,124.15,124.14,0.03]
[1743570907050,8.33902314,124.15,124.14,0.03]
[1743570907250,8.0547,124.15,124.14,0.03]
[1743570907660,52.29631716,124.15,124.14,0.03]
[1743570907857,26.988672,124.15,124.14,0.03]
[1743570908070,8.33902314,124.15,124.14,0.03]
[1743570908274,8.0547,124.15,124.14,0.03]
[1743570908578,33.6466683,124.15,124.14,0.03]
[1743570908875,33.6466683,124.15,124.01,62.86572956]
[1743570908876,0.3204,124.1,124.01,62.86572956]
[1743570909052,33.6531683,124.05,124.04,30.0]
[1743570909245,8.34552314,124.05,124.04,30.0]
[1743570909448,33.6531683,124.05,124.01,62.86572956]
[1743570909971,25.5919683,124.04,124.01,62.86572956]
[1743570910190,132.81709032,124.03,124.01,62.86572956]
[1743570910352,69.54926232,124.0,123.99,7.50067547]
[1743570910550,234.233972,123.99,123.98,6.73e-05]
[1743570910766,284.84926232,123.99,123.97,29.54865912]
[1743570910966,44.24161716,123.98,123.97,5.912e-05]
[1743570911359,18.933972,123.97,123.92,25.07571856]
[1743570911562,80.7,123.99,123.92,25.07571856]
[1743570911752,0.14216157,124.0,123.95,20.0]
[1743570911952,0.28432314,124.02,123.95,20.0]
[1743570912385,0.28432314,124.03,123.97,20.0]
[1743570913063,0.28432314,124.04,123.97,20.0]
[1743570913455,25.30764516,124.03,123.97,20.0]
[1743570913650,0.28432314,124.03,123.97,20.0]
[1743570913864,18.933972,124.03,123.95,1.6619]
[1743570914064,40.5698715,123.99,123.95,20.0]
[1743570914373,40.85419464,123.98,123.92,8.98]
[1743570914577,0.28432314,123.96,123.92,8.98]
[1743570914754,40.85419464,123.96,123.9,1.6619]
[1743570914961,59.21952036,123.95,123.89,249.15172472]
[1743570915161,18.933972,123.97,123.89,257.22312472]
[1743570915365,59.5038435,123.97,123.89,257.22312472]
[1743570915561,140.2038435,123.97,123.89,249.15172472]
[1743570915775,0.28432314,123.94,123.89,249.15172472]
[1743570916087,80.98432314,123.94,123.89,242.90642472]
[1743570916375,0.28432314,123.9,123.89,10.94642472]
[1743570916755,40.85419464,123.9,123.89,10.94642472]
[1743570916960,99.633972,123.9,123.89,10.94642472]
[1743570917157,18.933972,123.9,123.89,10.94642472]
[1743570917359,100.073715,123.9,123.89,10.94642472]
[1743570917767,100.073715,123.9,123.89,9.27982472]
[1743570918169,18.933972,123.9,123.89,2.61322472]
[1743570918374,18.933972,123.86,123.76,1.6099]
[1743570918562,134.6,123.85,123.76,1.6099]
[1743570918759,18.933972,123.84,123.76,1.6099]
[1743570919191,30.04,123.87,123.76,21.6099]
[1743570919361,0.28432314,123.86,123.77,10.22]
[1743570919674,0.28432314,123.86,123.77,9.22]
[1743570919979,18.933972,123.86,123.77,9.22]
[1743570920182,0.28432314,123.87,123.8,20.0]
[1743570920368,0.28432314,123.87,123.81,26.1727]
[1743570920572,18.64964886,123.91,123.81,26.1727]
[1743570920573,0.28432314,123.9,123.81,26.1727]
[1743570920769,18.933972,123.87,123.81,26.1727]
[1743570920960,134.6,123.92,123.81,26.1727]
[1743570920961,0.28432314,123.88,123.81,26.1727]
[1743570921365,0.063,123.9,123.82,8.0762]
[1743570921568,80.7,123.89,123.83,10.54]
[1743570921975,0.28432314,123.88,123.81,5.53963161]
[1743570922179,80.7,123.89,123.81,5.53963161]
[1743570922695,0.28432314,123.88,123.81,5.53963161]
[1743570922873,40.85419464,123.86,123.81,5.53963161]
[1743570923186,0.28432314,123.84,123.78,232.14]
[1743570923489,80.7,123.83,123.78,232.14]
[1743570923892,0.28432314,123.82,123.78,232.14]
[1743570924396,40.85419464,123.82,123.78,232.14]
[1743570924687,0.28432314,123.82,123.78,232.14]
[1743570925188,80.7,123.83,123.78,232.14]
[1743570925564,0.28432314,123.82,123.78,232.14]
[1743570926086,0.28432314,123.82,123.76,1.6099]
[1743570926279,80.7,123.89,123.79,20.0]
[1743570926472,18.933972,123.87,123.79,20.0]
[1743570926666,0.28432314,123.87,123.79,20.0]
[1743570926874,0.28432314,123.87,123.81,20.0]
[1743570927281,80.7,123.88,123.81,20.0]
[1743570927590,80.7,123.88,123.82,11.38]
[1743570927794,0.28432314,123.87,123.82,11.38]
[1743570928179,80.7,123.88,123.82,11.38]
[1743570928673,80.7,123.88,123.82,19.456]
[1743570928868,40.5698715,123.86,123.81,20.0]
[1743570929074,0.28432314,123.85,123.8,20.0]
[1743570929291,0.28432314,123.87,123.8,20.0]
[1743570929490,80.7,123.88,123.8,20.0]
[1743570929686,80.7,123.88,123.82,20.0]
[1743570929895,80.7,123.88,123.82,28.0759]
[1743570930194,0.28432314,123.89,123.83,6.0276]
[1743570930400,0.063,123.9,123.83,238.4276]
[1743570930605,0.063,123.9,123.84,1.5576]
[1743570931773,0.063,123.9,123.85,26.72384886]
[1743570931979,0.063,123.9,123.84,9.6324]
[1743570933891,0.063,123.9,123.85,38.64964886]
[1743570934486,0.063,123.9,123.84,9.6324]
[1743570936387,0.063,123.9,123.85,38.64964886]
[1743570937176,0.063,123.9,123.88,20.0]
[1743570937497,0.063,123.9,123.87,11.46]
[1743570937999,0.063,123.9,123.88,8.0723]
[1743570940100,0.063,123.9,123.87,19.5327]
[1743570940289,0.063,123.9,123.85,20.0]
[1743570940487,40.5698715,123.88,123.8,0.03]
[1743570940686,121.2698715,123.89,123.8,8.1074]
[1743570940883,121.2698715,123.89,123.8,0.03]
[1743570941092,121.2698715,123.89,123.8,18.67964886]
[1743570941289,121.2698715,123.89,123.81,11.48]
[1743570941609,40.5698715,123.85,123.81,11.48]
[1743570941806,40.5698715,123.86,123.81,11.48]
[1743570941988,40.5698715,123.87,123.8,0.03]
[1743570942599,8.35682314,123.88,123.8,0.03]
[1743570942801,80.7,123.89,123.8,0.03]
[1743570942996,80.7,123.89,123.8,38.67964886]
[1743570943188,80.7,123.89,123.8,18.67964886]
[1743570943385,121.2698715,123.89,123.8,30.33964886]
[1743570943579,0.28432314,123.88,123.8,11.69]
[1743570944002,48.92659464,123.88,123.8,11.69]
[1743570944306,40.5698715,123.87,123.8,11.69]
[1743570944608,48.92659464,123.88,123.8,11.69]
[1743570945302,40.5698715,123.87,123.8,11.69]
[1743570946407,48.92659464,123.88,123.8,0.03]
[1743570946606,0.28432314,123.88,123.8,8.1074]
[1743570946811,88.7717,123.89,123.8,8.1074]
[1743570947122,0.28432314,123.88,123.8,0.03]
[1743570947310,40.85419464,123.88,123.8,0.03]
[1743570948327,48.92669464,123.88,123.8,0.03]
[1743570948617,8.35682314,123.88,123.8,0.03]
[1743570948830,80.7,123.89,123.8,38.67964886]
[1743570950325,121.2698715,123.89,123.81,8.0768]
[1743570950634,80.7,123.89,123.81,8.0768]
[1743570950804,80.7,123.89,123.82,11.46]
[1743570951494,121.2698715,123.89,123.82,11.46]
[1743570951689,0.28432314,123.88,123.82,11.46]
[1743570951897,40.85419464,123.88,123.81,232.44]
[1743570952098,0.28432314,123.88,123.81,232.44]
[1743570952290,0.28432314,123.88,123.8,0.03]
[1743570952291,40.5698715,123.83,123.8,0.03]
[1743570952594,40.5698715,123.84,123.8,0.03]
[1743570952799,129.3442715,123.85,123.8,0.03]
[1743570952999,121.2698715,123.85,123.8,0.03]
[1743570953196,80.7,123.85,123.8,0.03]
[1743570953587,40.5698715,123.87,123.8,0.03]
[1743570955102,8.35702314,123.88,123.8,0.03]
[1743570955426,40.5698715,123.87,123.8,0.03]
[1743570956120,0.28432314,123.88,123.8,0.03]
[1743570956425,40.5698715,123.87,123.8,0.03]
[1743570958836,40.5698715,123.86,123.8,0.03]
[1743570959130,40.5698715,123.87,123.8,0.03]
[1743570959304,40.5698715,123.84,123.8,0.03]
[1743570959625,121.2698715,123.86,123.8,0.03]
[1743570960217,80.7,123.86,123.8,0.03]
[1743570960415,0.28432314,123.85,123.8,0.03]
[1743570960617,40.5698715,123.84,123.8,0.03]
[1743570960819,0.28432314,123.85,123.8,0.03]
[1743570961212,48.92859464,123.85,123.8,0.03]
[1743570961428,40.85419464,123.83,123.8,0.03]
[1743570961720,0.28432314,123.83,123.8,0.03]
[1743570961907,0.063,123.88,123.81,7.737]
[1743570962109,40.91719464,123.88,123.81,7.737]
[1743570963115,0.063,123.88,123.81,7.737]
[1743570963315,0.063,123.88,123.82,8.0762]
[1743570963699,0.063,123.88,123.83,38.64964886]
[1743570964129,0.063,123.88,123.86,20.0]
[1743570964333,0.063,123.88,123.87,19.2622]
[1743570965040,12.49204054,123.97,123.91,20.0]
[1743570965234,12.49204054,123.97,123.91,8.0703]
[1743570965403,12.49204054,123.97,123.92,11.08]
[1743570966413,12.49204054,123.97,123.89,8.0715]
[1743570966609,40.85419464,123.96,123.87,8.1622]
[1743570966811,40.5698715,123.94,123.87,19.2022]
[1743570967129,40.5698715,123.93,123.87,19.2022]
[1743570967517,40.5698715,123.92,123.87,19.2022]
[1743570967922,40.5698715,123.93,123.87,19.2022]
[1743570968122,0.28432314,123.95,123.87,27.2751]
[1743570968329,40.85419464,123.95,123.87,27.2751]
[1743570968530,40.85419464,123.95,123.87,16.2351]
[1743570968828,40.85419464,123.95,123.87,27.2351]
[1743570969032,0.063,123.94,123.87,27.2351]
[1743570969726,40.6328715,123.94,123.87,19.1622]
[1743570970825,40.6328715,123.94,123.87,27.235]
[1743570971415,0.063,123.94,123.87,27.235]
[1743570971617,0.063,123.94,123.88,18.64964886]
[1743570971818,0.063,123.94,123.92,20.0]
[1743570972028,80.7,124.02,123.93,11.04]
[1743570972225,0.063,124.03,123.95,6.0568]
[1743570972435,0.063,124.03,123.95,7.7044]
[1743570973013,40.6328715,124.03,123.95,7.7044]
[1743570973331,0.063,124.03,123.96,8.0671]
[1743570974743,0.063,124.03,123.95,7.7044]
[1743570974942,40.6328715,124.01,123.95,18.7044]
[1743570975212,40.5698715,124.0,123.95,17.0568]
[1743570975436,40.5698715,123.99,123.95,17.0568]
[1743570975738,40.5698715,123.99,123.95,11.0]
[1743570976032,40.5698715,123.98,123.91,7.9522]
[1743570976233,18.996972,124.01,123.91,27.0025]
[1743570976424,0.28432314,123.99,123.91,27.0025]
[1743570977027,40.6328715,124.01,123.91,27.0025]
[1743570977226,0.28432314,124.0,123.91,27.0025]
[1743570977625,40.85419464,124.0,123.91,27.0025]
[1743570977822,61.17076025,124.0,123.91,27.0025]
[1743570978034,0.28432314,124.0,123.91,27.0025]
[1743570978931,60.94943711,124.01,123.94,20.0]
[1743570978932,0.063,124.01,123.94,20.0]
[1743570979133,0.063,124.01,123.96,20.0]
[1743570979321,0.063,124.01,123.97,38.9662]
[1743570980145,0.063,124.01,123.97,30.9]
[1743570980320,0.063,124.01,123.98,10.86]
[1743570981031,0.063,124.01,123.99,6.1244]
[1743570981426,0.063,124.01,123.99,14.1894]
[1743570982037,0.063,124.0,123.99,14.1894]
[1743570982238,0.063,124.03,124.02,58.64964886]
[1743570982433,0.063,124.03,124.02,139.54964886]
[1743570982945,0.063,124.07,124.02,139.54964886]
[1743570983341,0.063,124.07,124.03,8.0625]
[1743570983640,0.063,124.07,124.04,10.78]
[1743570984345,0.063,124.07,124.04,30.78]
[1743570985244,0.063,124.07,124.04,10.78]
[1743570985425,0.063,124.07,123.99,88.6181]
[1743570985624,60.88643711,124.04,124.0,30.0]
[1743570985826,18.996972,124.07,124.0,30.0]
[1743570986233,0.063,124.07,124.0,30.0]
[1743570986433,0.34732314,124.07,124.0,30.0]
[1743570986628,61.23376025,124.07,124.0,30.0]
[1743570986930,0.34732314,124.07,124.0,30.0]
[1743570987132,61.23376025,124.07,124.0,30.0]
[1743570987326,0.34732314,124.07,124.0,30.0]
[1743570987541,0.063,124.07,124.0,30.0]
[1743570987747,60.94943711,124.07,124.0,30.0]
[1743570988333,0.28432314,124.06,124.0,30.0]
[1743570988538,61.17076025,124.06,124.0,30.0]
[1743570988854,60.88643711,124.05,123.99,7.7181]
[1743570989459,69.23146025,124.06,123.99,7.7181]
[1743570990059,60.88643711,124.05,123.99,7.7181]
[1743570990369,8.34502314,124.06,123.99,7.7181]
[1743570990649,0.28432314,124.06,123.99,7.7181]
[1743570990852,60.94943711,124.07,123.99,7.7181]
[1743570991431,0.34732314,124.07,123.99,7.7181]
[1743570991626,0.063,124.07,123.99,7.7181]
[1743570991928,0.063,124.07,124.0,18.64964886]
[1743570992135,0.063,124.07,124.01,20.0]
[1743570992333,0.063,124.07,124.05,20.0]
[1743570993637,0.063,124.06,124.05,20.0]
[1743570994638,0.063,124.06,124.05,50.0]
[1743570994861,0.063,124.07,124.06,28.0645]
[1743570995035,0.063,124.07,124.06,46.998472]
[1743570995234,0.063,124.13,124.09,20.0]
[1743570995438,0.063,124.13,124.09,31.24]
[1743570996854,0.063,124.13,124.09,11.24]
[1743570997646,0.063,124.13,124.09,41.24]
[1743570999762,0.063,124.13,124.1,18.64964886]
[1743570999966,0.063,124.13,124.1,48.64964886]
[1743571001465,0.063,124.13,124.1,30.0]
[1743571010497,40.48040685,124.12,124.1,30.0]
[1743571010800,40.48040685,124.12,124.06,8.0645]
[1743571010989,0.34732314,124.13,124.08,30.0]
[1743571011191,0.063,124.13,124.06,16.1246]